fUSD/lending_fUSD_20250521
["ID","MTS","AMOUNT","RATE_DAILY","PERIOD"]
[361866675,1747852282504,-699.35,0.00038465,30]
[361866676,1747852282513,-265.122198,0.00038465,14]
[361866677,1747852282523,-265.122198,0.00038465,14]
[361866678,1747852282533,-420.0,0.00038465,30]
[361866679,1747852282542,-495.72,0.00038465,30]
[361866680,1747852282552,-1516.19,0.00038465,30]
[361866681,1747852282562,-420.0,0.00038465,30]
[361866682,1747852282572,-774.74,0.00038465,30]
[361866683,1747852282584,-420.0,0.00038465,30]
[361866684,1747852282595,-1526.44,0.00038465,30]
[361866685,1747852282605,-794.59,0.00038465,30]
[361866686,1747852282615,-1695.26,0.00038465,30]
[361866687,1747852282626,-2132.71,0.00038465,30]
[361866688,1747852282636,-1050.62,0.00038465,30]
[361866689,1747852282646,-680.33,0.00038465,30]
[361866690,1747852282656,-420.0,0.00038465,30]
[361866691,1747852282666,-926.07,0.00038465,30]
[361866692,1747852282681,-546.85,0.00038465,30]
[361866693,1747852282690,-707.25,0.00038465,30]
[361866694,1747852282700,-5136.97,0.00038465,30]
[361866695,1747852282710,-1031.8,0.00038465,30]
[361866696,1747852282720,-158.860101,0.00038465,14]
[361866697,1747852282731,-158.860101,0.00038465,14]
[361866698,1747852282741,-158.860101,0.00038465,14]
[361866699,1747852282751,-158.860101,0.00038465,14]
[361866700,1747852282760,-197.31,0.00038465,30]
[361866701,1747852282771,-536.86,0.00038465,30]
[361866702,1747852282780,-541.81,0.00038465,30]
[361866703,1747852282791,-420.0,0.00038465,30]
[361866704,1747852282801,-420.0,0.00038465,30]
[361866705,1747852282810,-151.0,0.00038465,14]
[361866706,1747852282821,-151.0,0.00038465,14]
[361866707,1747852282831,-1213.96,0.00038465,30]
[361866708,1747852282842,-762.76,0.00038465,30]
[361866709,1747852282855,-1606.5,0.00038465,30]
[361866710,1747852282866,-420.0,0.00038465,30]
[361866711,1747852282879,-420.0,0.00038465,30]
[361866712,1747852282889,-788.43,0.00038465,30]
[361866713,1747852282899,-1889.24,0.00038465,30]
[361866714,1747852282909,-796.7,0.00038465,30]
[361866715,1747852282919,-637.8,0.00038465,30]
[361866716,1747852282929,-999.16,0.00038465,30]
[361866717,1747852282940,-627.49,0.00038465,30]
[361866718,1747852282950,-420.0,0.00038465,25]
[361866719,1747852282961,-420.0,0.00038465,30]
[361866720,1747852282971,-500.0,0.00038465,30]
[361866721,1747852282980,-420.0,0.00038465,30]
[361866722,1747852282990,-420.0,0.00038465,30]
[361866723,1747852283000,-420.0,0.00038465,30]
[361866724,1747852283012,-420.0,0.00038465,30]
[361866725,1747852283022,-420.0,0.00038465,30]
[361866726,1747852283032,-518.03,0.00038465,30]
[361866727,1747852283041,-420.0,0.00038465,30]
[361866728,1747852283051,-420.0,0.00038465,30]
[361866729,1747852283062,-420.0,0.00038465,30]
[361866730,1747852283071,-2795.36,0.00038465,30]
[361866731,1747852283080,-870.88,0.00038465,30]
[361866732,1747852283092,-976.66,0.00038465,30]
[361866733,1747852283101,-420.0,0.00038465,30]
[361866734,1747852283111,-420.0,0.00038465,30]
[361866735,1747852283122,-657.1,0.00038465,30]
[361866736,1747852283132,-420.0,0.00038465,30]
[361866737,1747852283142,-715.08,0.00038465,30]
[361866738,1747852283151,-420.0,0.00038465,30]
[361866739,1747852283160,-420.0,0.00038465,30]
[361866740,1747852283170,-211.24737366,0.00038465,30]
[361866741,1747852283179,-420.0,0.00038465,30]
[361866742,1747852283189,-420.0,0.00038465,30]
[361866743,1747852283199,-420.0,0.00038465,30]
[361866744,1747852283207,-420.0,0.00038465,30]
[361866745,1747852283217,-420.0,0.00038465,30]
[361866746,1747852283226,-420.0,0.00038465,30]
[361866747,1747852283236,-420.0,0.00038465,30]
[361866748,1747852283245,-420.0,0.00038465,30]
[361866749,1747852283255,-206.39577306,0.00038465,30]
[361866750,1747852283264,-420.0,0.00038465,30]
[361866751,1747852283274,-420.0,0.00038465,30]
[361866752,1747852283283,-420.0,0.00038465,30]
[361866753,1747852283293,-420.0,0.00038465,30]
[361866754,1747852283303,-1581.62,0.00038465,30]
[361866755,1747852283312,-495.12,0.00038465,30]
[361866756,1747852283322,-466.03,0.00038465,30]
[361866757,1747852283331,-420.0,0.00038465,30]
[361866758,1747852283341,-420.0,0.00038465,30]
[361866759,1747852283351,-420.0,0.00038465,30]
[361866760,1747852283361,-420.0,0.00038465,30]
[361866761,1747852283372,-420.0,0.00038465,30]
[361866762,1747852283382,-1384.6,0.00038465,30]
[361866763,1747852283392,-420.0,0.00038465,30]
[361866764,1747852283401,-1348.31,0.00038465,30]
[361866765,1747852283411,-2010.66,0.00038465,30]
[361866766,1747852283420,-420.0,0.00038465,30]
[361866767,1747852283430,-420.0,0.00038465,30]
[361866768,1747852283439,-420.0,0.00038465,30]
[361866769,1747852283448,-549.88,0.00038465,30]
[361866770,1747852283458,-12581.3,0.00038465,30]
[361866771,1747852283467,-420.0,0.00038465,30]
[361866772,1747852283477,-420.0,0.00038465,30]
[361866773,1747852283487,-420.0,0.00038465,30]
[361866774,1747852283496,-1044.49,0.00038465,30]
[361866775,1747852283506,-420.0,0.00038465,30]
[361866776,1747852283515,-699.4,0.00038465,30]
[361866777,1747852283525,-228.35342986,0.00038465,30]
[361866778,1747852283534,-1192.2,0.00038465,30]
[361866779,1747852283543,-420.0,0.00038465,30]
[361866780,1747852283553,-1321.32,0.00038465,30]
[361866781,1747852283562,-606.57,0.00038465,30]
[361866782,1747852283571,-420.0,0.00038465,30]
[361866783,1747852283580,-420.0,0.00038465,30]
[361866784,1747852283590,-2813.54,0.00038465,30]
[361866785,1747852283599,-420.0,0.00038465,30]
[361866786,1747852283609,-208.16,0.00038465,30]
[361866787,1747852283620,-420.0,0.00038465,30]
[361866788,1747852283630,-1261.9,0.00038465,30]
[361866789,1747852283639,-420.0,0.00038465,30]
[361866790,1747852283649,-420.0,0.00038465,30]
[361866791,1747852283658,-1937.46,0.00038465,30]
[361866792,1747852283668,-1562.41,0.00038465,30]
[361866793,1747852283679,-1019.57,0.00038465,30]
[361866794,1747852283690,-1752.7,0.00038465,30]
[361866795,1747852283699,-1827.93,0.00038465,30]
[361866796,1747852283709,-627.24,0.00038465,30]
[361866797,1747852283719,-420.0,0.00038465,30]
[361866798,1747852283729,-420.0,0.00038465,30]
[361866799,1747852283738,-8974.03,0.00038465,30]
[361866800,1747852283748,-1198.01,0.00038465,30]
[361866801,1747852283758,-420.0,0.00038465,30]
[361866802,1747852283768,-1699.01,0.00038465,30]
[361866803,1747852283778,-1092.69,0.00038465,30]
[361866804,1747852283788,-420.0,0.00038465,30]
[361866805,1747852283797,-420.0,0.00038465,30]
[361866806,1747852283807,-420.0,0.00038465,30]
[361866807,1747852283816,-1069.28,0.00038465,30]
[361866808,1747852283826,-420.0,0.00038465,30]
[361866809,1747852283836,-2103.64,0.00038465,30]
[361866810,1747852283845,-609.27,0.00038465,30]
[361866811,1747852283856,-420.0,0.00038465,30]
[361866812,1747852283865,-13403.33,0.00038465,2]
[361866813,1747852283877,-420.0,0.00038465,30]
[361866814,1747852283886,-420.0,0.00038465,30]
[361866815,1747852283896,-420.0,0.00038465,30]
[361866816,1747852283906,-420.0,0.00038465,30]
[361866817,1747852283916,-420.0,0.00038465,30]
[361866818,1747852283926,-920.8,0.00038465,30]
[361866819,1747852283935,-420.0,0.00038465,30]
[361866820,1747852283945,-2160.3,0.00038465,30]
[361866821,1747852283954,-420.0,0.00038465,30]
[361866822,1747852283964,-420.0,0.00038465,30]
[361866823,1747852283975,-420.0,0.00038465,30]
[361866824,1747852283985,-541.91,0.00038465,30]
[361866825,1747852283996,-1579.88,0.00038465,30]
[361866826,1747852284008,-420.0,0.00038465,30]
[361866827,1747852284018,-420.0,0.00038465,30]
[361866828,1747852284027,-1245.18,0.00038465,30]
[361866829,1747852284037,-420.0,0.00038465,30]
[361866830,1747852284047,-599.61,0.00038465,30]
[361866831,1747852284056,-1361.89,0.00038465,30]
[361866832,1747852284066,-420.0,0.00038465,30]
[361866833,1747852284076,-826.94,0.00038465,30]
[361866834,1747852284087,-728.09,0.00038465,30]
[361866835,1747852284096,-1507.59,0.00038465,30]
[361866836,1747852284106,-420.0,0.00038465,30]
[361866837,1747852284115,-420.0,0.00038465,30]
[361866838,1747852284125,-420.0,0.00038465,30]
[361866839,1747852284135,-1066.49,0.00038465,30]
[361866840,1747852284145,-1210.13,0.00038465,30]
[361866841,1747852284154,-177.32197005,0.00038465,30]
[361866842,1747852284164,-472.99,0.00038465,30]
[361866843,1747852284176,-1566.96,0.00038465,30]
[361866844,1747852284189,-1138.42,0.00038465,30]
[361866845,1747852284199,-420.0,0.00038465,30]
[361866846,1747852284208,-420.0,0.00038465,30]
[361866847,1747852284218,-420.0,0.00038465,30]
[361866848,1747852284228,-1218.6,0.00038465,30]
[361866849,1747852284238,-420.0,0.00038465,30]
[361866850,1747852284247,-505.04925287,0.00038465,30]
[361866851,1747852284257,-420.0,0.00038465,30]
[361866852,1747852284266,-486.77,0.00038465,30]
[361866853,1747852284275,-533.64,0.00038465,30]
[361866854,1747852284284,-1350.63,0.00038465,30]
[361866855,1747852284294,-556.15,0.00038465,30]
[361866856,1747852284303,-554.02,0.00038465,30]
[361866857,1747852284312,-800.43,0.00038465,30]
[361866858,1747852284323,-420.0,0.00038465,30]
[361866859,1747852284333,-792.44,0.00038465,30]
[361866860,1747852284343,-642.97,0.00038465,30]
[361866861,1747852284352,-420.0,0.00038465,30]
[361866862,1747852284362,-1926.07,0.00038465,30]
[361866863,1747852284374,-1953.27,0.00038465,30]
[361866864,1747852284383,-1970.06,0.00038465,30]
[361866865,1747852284393,-420.0,0.00038465,30]
[361866866,1747852284402,-460.0,0.00038465,30]
[361866867,1747852284411,-667.94,0.00038465,30]
[361866868,1747852284421,-766.59,0.00038465,30]
[361866869,1747852284431,-420.0,0.00038465,30]
[361866870,1747852284441,-579.69,0.00038465,30]
[361866871,1747852284451,-1582.48,0.00038465,30]
[361866872,1747852284461,-698.56,0.00038465,30]
[361866873,1747852284471,-1043.08,0.00038465,30]
[361866874,1747852284481,-420.0,0.00038465,30]
[361866875,1747852284491,-420.0,0.00038465,30]
[361866876,1747852284502,-420.0,0.00038465,30]
[361866877,1747852284511,-443.16,0.00038465,30]
[361866878,1747852284522,-420.0,0.00038465,30]
[361866879,1747852284532,-420.0,0.00038465,30]
[361866880,1747852284542,-466.36,0.00038465,30]
[361866881,1747852284552,-1742.31,0.00038465,30]
[361866882,1747852284562,-39999.31,0.00038465,7]
[361866883,1747852284571,-420.0,0.00038465,30]
[361866884,1747852284583,-420.0,0.00038465,30]
[361866885,1747852284593,-420.0,0.00038465,30]
[361866886,1747852284602,-420.0,0.00038465,30]
[361866887,1747852284613,-420.0,0.00038465,30]
[361866888,1747852284626,-420.0,0.00038465,30]
[361866889,1747852284637,-601.45,0.00038465,30]
[361866890,1747852284647,-435.94854535,0.00038465,30]
[361866891,1747852284656,-614.87,0.00038465,30]
[361866892,1747852284666,-957.23,0.00038465,30]
[361866893,1747852284675,-420.0,0.00038465,2]
[361866894,1747852284686,-2868.2,0.00038465,30]
[361866895,1747852284695,-432.07,0.00038465,30]
[361866896,1747852284705,-420.0,0.00038465,30]
[361866897,1747852284715,-420.0,0.00038465,30]
[361866898,1747852284725,-1648.02,0.00038465,30]
[361866899,1747852284734,-420.0,0.00038465,30]
[361866900,1747852284744,-2033.84,0.00038465,30]
[361866901,1747852284754,-1230.81,0.00038465,30]
[361866902,1747852284765,-968.42,0.00038465,30]
[361866903,1747852284778,-420.0,0.00038465,30]
[361866904,1747852284788,-1971.1,0.00038465,30]
[361866905,1747852284798,-1132.85,0.00038465,30]
[361866906,1747852284808,-1277.02,0.00038465,30]
[361866907,1747852284818,-420.0,0.00038465,2]
[361866908,1747852284828,-420.0,0.00038465,30]
[361866909,1747852284838,-583.03123375,0.00038473,5]
[361866910,1747852284849,-500.0,0.00038473,5]
[361866911,1747852284860,-500.42848311,0.00038473,5]
[361866912,1747852284870,-300.0,0.00038574,10]
[361866913,1747852284882,-2703.71523416,0.00038575,7]
[361866914,1747852284892,-161.582422,0.00038575,14]
[361866915,1747852284902,-420.0,0.00038575,30]
[361866916,1747852284912,-420.0,0.00038575,30]
[361866917,1747852284921,-413.25989477,0.00038575,30]
[361866918,1747852284931,-420.0,0.00038575,30]
[361866919,1747852284943,-420.0,0.00038575,30]
[361866920,1747852284953,-420.0,0.00038575,30]
[361866921,1747852284962,-420.0,0.00038575,30]
[361866922,1747852284972,-420.0,0.00038575,30]
[361866923,1747852284981,-420.0,0.00038575,30]
[361866924,1747852284990,-420.0,0.00038575,30]
[361866925,1747852285000,-420.0,0.00038575,30]
[361866926,1747852285010,-240.0,0.00038575,30]
[361866927,1747852285022,-420.0,0.00038575,30]
[361866928,1747852285032,-193.55872225,0.00038575,30]
[361866929,1747852285041,-344.3326806,0.00038575,30]
[361866930,1747852285050,-300.0,0.00038575,30]
[361866931,1747852285060,-420.0,0.00038575,30]
[361866932,1747852285069,-393.665471,0.00038575,14]
[361866933,1747852285079,-393.665471,0.00038575,14]
[361866934,1747852285089,-393.665471,0.00038575,14]
[361866935,1747852285098,-393.665471,0.00038575,14]
[361866936,1747852285108,-420.0,0.00038575,30]
[361866937,1747852285117,-479.97551997,0.00038575,30]
[361866938,1747852285129,-420.0,0.00038575,30]
[361866939,1747852285138,-420.0,0.00038575,30]
[361866940,1747852285148,-420.0,0.00038575,30]
[361866941,1747852285158,-420.0,0.00038575,30]
[361866942,1747852285167,-420.0,0.00038575,30]
[361866943,1747852285177,-420.0,0.00038575,30]
[361866944,1747852285187,-268.40083536,0.00038575,30]
[361866945,1747852285197,-420.0,0.00038575,30]
[361866946,1747852285438,-211.2778015,0.00038575,30]
[361866947,1747852285450,-552.19,0.00038575,30]
[361866948,1747852285461,-300.0,0.00038575,30]
[361866949,1747852285471,-664.68,0.00038575,30]
[361866950,1747852285480,-489.34,0.00038575,30]
[361866951,1747852285490,-420.0,0.00038575,30]
[361866952,1747852285499,-446.59,0.00038575,30]
[361866953,1747852285509,-364.82801466,0.00038575,30]
[361866954,1747852285518,-420.0,0.00038575,30]
[361866955,1747852285528,-876.19,0.00038575,30]
[361866956,1747852285538,-420.0,0.00038575,30]
[361866957,1747852285548,-420.0,0.00038575,30]
[361866958,1747852285558,-420.0,0.00038575,30]
[361866959,1747852285568,-420.0,0.00038575,30]
[361866960,1747852285578,-420.0,0.00038575,30]
[361866961,1747852285588,-1402.79,0.00038575,30]
[361866962,1747852285597,-420.0,0.00038575,30]
[361866963,1747852285607,-420.0,0.00038575,30]
[361866964,1747852285618,-420.0,0.00038575,30]
[361866965,1747852285630,-420.0,0.00038575,30]
[361866966,1747852285640,-420.0,0.00038575,30]
[361866967,1747852285650,-497.1,0.00038575,30]
[361866968,1747852285660,-420.0,0.00038575,30]
[361866969,1747852285669,-420.0,0.00038575,30]
[361866970,1747852285680,-420.0,0.00038575,30]
[361866971,1747852285690,-933.98,0.00038575,30]
[361866972,1747852285700,-420.0,0.00038575,30]
[361866973,1747852285710,-420.0,0.00038575,30]
[361866974,1747852285720,-611.48,0.00038575,30]
[361866975,1747852285730,-420.0,0.00038575,30]
[361866976,1747852285740,-780.47,0.00038575,30]
[361866977,1747852285751,-1299.68,0.00038575,30]
[361866978,1747852285761,-420.0,0.00038575,30]
[361866979,1747852285771,-420.0,0.00038575,30]
[361866980,1747852285781,-420.0,0.00038575,30]
[361866981,1747852285793,-911.46,0.00038575,30]
[361866982,1747852285803,-420.0,0.00038575,7]
[361866983,1747852285813,-623.38,0.00038575,30]
[361866984,1747852285823,-420.0,0.00038575,30]
[361866985,1747852285833,-420.0,0.00038575,30]
[361866986,1747852285843,-477.77,0.00038575,30]
[361866987,1747852285853,-533.60840918,0.00038575,30]
[361866988,1747852285863,-509.37,0.00038575,30]
[361866989,1747852285874,-420.0,0.00038575,30]
[361866990,1747852285884,-651.1,0.00038575,30]
[361866991,1747852285895,-420.0,0.00038575,30]
[361866992,1747852285905,-749.24,0.00038575,30]
[361866993,1747852285916,-420.0,0.00038575,30]
[361866994,1747852285926,-542.78,0.00038575,30]
[361866995,1747852285938,-1619.08,0.00038575,30]
[361866996,1747852285948,-420.0,0.00038575,30]
[361866997,1747852285959,-420.0,0.00038575,30]
[361866998,1747852285969,-437.05,0.00038575,30]
[361866999,1747852285978,-473.85,0.00038575,30]
[361867000,1747852285988,-593.38,0.00038575,30]
[361867001,1747852285998,-237.07512256,0.00038575,30]
[361867002,1747852286010,-420.0,0.00038575,30]
[361867003,1747852286023,-420.0,0.00038575,30]
[361867004,1747852286034,-606.83,0.00038575,30]
[361867005,1747852286044,-420.0,0.00038575,30]
[361867006,1747852286055,-420.0,0.00038575,30]
[361867007,1747852286065,-420.0,0.00038575,30]
[361867008,1747852286074,-840.16,0.00038575,30]
[361867009,1747852286086,-420.0,0.00038575,30]
[361867010,1747852286096,-420.0,0.00038575,30]
[361867011,1747852286106,-1244.08,0.00038575,30]
[361867012,1747852286116,-420.0,0.00038575,30]
[361867013,1747852286129,-468.2,0.00038575,30]
[361867014,1747852286139,-420.0,0.00038575,30]
[361867015,1747852286149,-1121.74,0.00038575,30]
[361867016,1747852286159,-420.0,0.00038575,30]
[361867017,1747852286168,-462.98,0.00038575,30]
[361867018,1747852286178,-420.0,0.00038575,30]
[361867019,1747852286189,-420.0,0.00038575,30]
[361867020,1747852286199,-720.37,0.00038575,30]
[361867021,1747852286208,-420.0,0.00038575,30]
[361867022,1747852286218,-434.79,0.00038575,30]
[361867023,1747852286228,-420.0,0.00038575,30]
[361867024,1747852286238,-420.0,0.00038575,30]
[361867025,1747852286248,-550.16,0.00038575,30]
[361867026,1747852286258,-420.0,0.00038575,30]
[361867027,1747852286268,-1741.1,0.00038575,30]
[361867028,1747852286278,-546.07,0.00038575,30]
[361867029,1747852286288,-420.0,0.00038575,30]
[361867030,1747852286298,-1662.17,0.00038575,30]
[361867031,1747852286308,-537.84,0.00038575,30]
[361867032,1747852286318,-420.0,0.00038575,30]
[361867033,1747852286328,-420.0,0.00038575,30]
[361867034,1747852286339,-420.0,0.00038575,30]
[361867035,1747852286348,-420.0,0.00038575,30]
[361867036,1747852286359,-420.0,0.00038575,30]
[361867037,1747852286369,-420.0,0.00038575,30]
[361867038,1747852286381,-420.0,0.00038575,30]
[361867039,1747852286390,-420.0,0.00038575,30]
[361867040,1747852286400,-420.0,0.00038575,30]
[361867041,1747852286410,-709.92,0.00038575,30]
[361867042,1747852286420,-734.49,0.00038575,30]
[361867043,1747852286430,-957.18,0.00038575,30]
[361867044,1747852286440,-420.0,0.00038575,30]
[361867045,1747852286450,-420.0,0.00038575,30]
[361867046,1747852286460,-420.0,0.00038575,30]
[361867047,1747852286470,-420.0,0.00038575,30]
[361867048,1747852286481,-506.54,0.00038575,30]
[361867049,1747852286491,-420.0,0.00038575,30]
[361867050,1747852286501,-902.29,0.00038575,30]
[361867051,1747852286511,-1417.68,0.00038575,30]
[361867052,1747852286521,-457.84828991,0.00038575,30]
[361867053,1747852286531,-420.0,0.00038575,30]
[361867054,1747852286541,-420.0,0.00038575,30]
[361867055,1747852286552,-1576.68,0.00038575,30]
[361867056,1747852286563,-718.17,0.00038575,30]
[361867057,1747852286572,-420.0,0.00038575,30]
[361867058,1747852286583,-420.0,0.00038575,30]
[361867059,1747852286593,-420.0,0.00038575,30]
[361867060,1747852286603,-420.0,0.00038575,30]
[361867061,1747852286614,-646.46,0.00038575,30]
[361867062,1747852286625,-420.0,0.00038575,30]
[361867063,1747852286634,-919.08,0.00038575,7]
[361867064,1747852286644,-429.68587482,0.00038575,30]
[361867065,1747852286653,-425.18,0.00038575,30]
[361867066,1747852286663,-420.0,0.00038575,30]
[361867067,1747852286673,-420.0,0.00038575,30]
[361867068,1747852286684,-420.0,0.00038575,30]
[361867069,1747852286694,-420.0,0.00038575,30]
[361867070,1747852286703,-420.0,0.00038575,30]
[361867071,1747852286713,-420.0,0.00038575,30]
[361867072,1747852286723,-726.5,0.00038575,30]
[361867073,1747852286733,-460.93499373,0.00038575,30]
[361867074,1747852286743,-420.0,0.00038575,30]
[361867075,1747852286753,-1185.99,0.00038575,30]
[361867076,1747852286762,-1061.53,0.00038575,30]
[361867077,1747852286772,-460.0,0.00038575,30]
[361867078,1747852286783,-420.0,0.00038575,30]
[361867079,1747852286792,-420.0,0.00038575,30]
[361867080,1747852286802,-569.77,0.00038575,30]
[361867081,1747852286812,-420.0,0.00038575,30]
[361867082,1747852286821,-420.0,0.00038575,30]
[361867083,1747852286830,-420.0,0.00038575,30]
[361867084,1747852286839,-151.0,0.00038575,14]
[361867085,1747852286849,-151.0,0.00038575,14]
[361867086,1747852286859,-667.66,0.00038575,30]
[361867087,1747852286869,-420.0,0.00038575,30]
[361867088,1747852286879,-420.0,0.00038575,30]
[361867089,1747852286890,-420.0,0.00038575,30]
[361867090,1747852286900,-217.81812739,0.00038575,30]
[361867091,1747852286910,-420.0,0.00038575,30]
[361867092,1747852286919,-151.0,0.00038575,14]
[361867093,1747852286929,-151.0,0.00038575,14]
[361867094,1747852286939,-13.24083329,0.00038575,30]
[361867095,1747852288719,-209.989639,0.00029815,7]
[361867096,1747852288729,-145.35747867,0.00032288,2]
[361867097,1747852288888,-59.64252133,0.00032288,2]
[361867098,1747852288897,-86.77506351,0.0003319,7]
[361867099,1747852289953,-123.21457549,0.0003319,7]
[361867100,1747852289963,-205.0,0.00034807,7]
[361867101,1747852289973,-691.11893913,0.00035373,30]
[361867102,1747852289982,-842.0,0.00035461,2]
[361867103,1747852289993,-150.0,0.00035829,2]
[361867104,1747852290003,-150.0,0.00035841,2]
[361867105,1747852290013,-150.0,0.00035886,2]
[361867106,1747852290023,-150.0,0.00035913,2]
[361867107,1747852290033,-150.0,0.00036046,2]
[361867108,1747852290042,-150.0,0.00036226,2]
[361867109,1747852290053,-150.0,0.00036282,2]
[361867110,1747852290062,-150.0,0.00036293,2]
[361867111,1747852290072,-150.0,0.00036331,2]
[361867112,1747852290082,-150.0,0.00036381,2]
[361867113,1747852290094,-150.0,0.00036414,2]
[361867114,1747852290103,-150.0,0.00036505,2]
[361867115,1747852290114,-150.0,0.00036509,2]
[361867116,1747852290124,-150.0,0.00036509,2]
[361867117,1747852290137,-150.0,0.00036516,2]
[361867118,1747852290147,-150.0,0.00036594,2]
[361867119,1747852290157,-150.0,0.00036607,2]
[361867120,1747852290166,-150.0,0.00036648,2]
[361867121,1747852290176,-150.0,0.00036671,2]
[361867122,1747852290186,-150.0,0.00036768,2]
[361867123,1747852290195,-150.0,0.00036772,2]
[361867124,1747852290205,-64.97851845,0.00036864,2]
[361867125,1747852290319,-85.02148155,0.00036864,2]
[361867126,1747852290329,-150.0,0.00036963,2]
[361867127,1747852290339,-150.0,0.00036987,2]
[361867128,1747852290348,-150.0,0.00036992,2]
[361867129,1747852290359,-150.0,0.00037016,2]
[361867130,1747852290369,-150.0,0.00037179,2]
[361867131,1747852290380,-150.0,0.00037294,2]
[361867132,1747852290391,-150.0,0.0003731,2]
[361867133,1747852290403,-205.0,0.00037327,12]
[361867134,1747852290412,-150.0,0.00037337,2]
[361867135,1747852290423,-150.0,0.00037384,2]
[361867136,1747852290433,-209.989639,0.00037446,7]
[361867137,1747852290444,-150.0,0.00037451,2]
[361867138,1747852290454,-172.93433668,0.00037467,2]
[361867139,1747852290464,-150.0,0.00037475,2]
[361867140,1747852290474,-150.0,0.00037542,2]
[361867141,1747852290484,-150.0,0.00037548,2]
[361867142,1747852290494,-209.989639,0.0003758,7]
[361867143,1747852290504,-150.0,0.00037591,2]
[361867144,1747852290514,-209.989639,0.00037629,7]
[361867145,1747852290524,-150.0,0.00037697,2]
[361867146,1747852290534,-150.0,0.00037715,2]
[361867147,1747852290544,-150.0,0.00037718,2]
[361867148,1747852290560,-150.0,0.0003774,2]
[361867149,1747852290570,-150.0,0.00037744,2]
[361867150,1747852290580,-150.0,0.00037748,2]
[361867151,1747852290590,-150.0,0.00037765,2]
[361867152,1747852290600,-204.157663,0.000378,25]
[361867153,1747852290610,-150.0,0.00037845,2]
[361867154,1747852290620,-150.0,0.00037866,2]
[361867155,1747852290632,-150.0,0.00037895,2]
[361867156,1747852290642,-150.0,0.00037973,2]
[361867157,1747852290652,-150.0,0.00038049,2]
[361867158,1747852290662,-150.0,0.00038051,2]
[361867159,1747852290672,-150.0,0.00038076,2]
[361867160,1747852290682,-150.0,0.00038117,2]
[361867161,1747852290692,-150.0,0.00038132,2]
[361867162,1747852290702,-150.0,0.00038157,2]
[361867163,1747852290713,-150.0,0.00038179,2]
[361867164,1747852290723,-190.94935954,0.0003831,2]
[361867165,1747852290734,-420.0,0.00038356,30]
[361867166,1747852290745,-420.0,0.00038356,30]
[361867167,1747852290755,-209.989639,0.00038356,7]
[361867168,1747852290766,-420.0,0.00038356,30]
[361867169,1747852290777,-209.989639,0.00038356,7]
[361867170,1747852290787,-420.0,0.00038356,30]
[361867171,1747852290797,-209.989639,0.00038356,7]
[361867172,1747852290807,-209.989639,0.00038356,7]
[361867173,1747852290817,-420.0,0.00038356,30]
[361867174,1747852290827,-1163.46,0.00038356,30]